bitfinex/quotes_BTCUSD_20250602
["timestamp","ask_amount","ask_price","bid_price","bid_amount"]
[1748899290584,1.20087285,104830.0,104820.0,0.21990829]
[1748899291008,1.20087285,104830.0,104820.0,0.22944809]
[1748899291217,1.20087285,104830.0,104820.0,0.21990829]
[1748899291650,1.20758064,104830.0,104820.0,0.21990829]
[1748899291867,1.20087285,104830.0,104820.0,0.22944818]
[1748899292281,1.20922105,104830.0,104820.0,0.20082824]
[1748899292492,1.1913336,104830.0,104820.0,0.20082824]
[1748899292920,6.2413336,104830.0,104820.0,0.20082824]
[1748899293133,6.2720336,104830.0,104820.0,0.21036831]
[1748899293353,6.2720336,104830.0,104820.0,0.00762496]
[1748899293562,6.2720336,104830.0,104820.0,0.0004848]
[1748899293780,6.29662999,104830.0,104820.0,0.0004848]
[1748899293987,6.3559833,104830.0,104820.0,0.0004848]
[1748899294214,6.33809445,104830.0,104820.0,0.0004848]
[1748899294446,6.35598356,104830.0,104820.0,0.0004848]
[1748899294657,6.33409445,104830.0,104820.0,0.0004848]
[1748899294901,6.34009445,104830.0,104820.0,0.0004848]
[1748899295379,6.35398338,104830.0,104820.0,0.0004848]
[1748899295633,6.28792253,104830.0,104820.0,0.0004848]
[1748899295872,6.2760336,104830.0,104820.0,0.0004848]
[1748899296949,6.3931421,104830.0,104820.0,0.0004848]
[1748899297199,6.37525317,104830.0,104820.0,0.0004848]
[1748899297409,7.3812507,104830.0,104820.0,0.0004848]
[1748899297618,7.43450553,104830.0,104820.0,0.0004848]
[1748899297834,7.41661556,104830.0,104820.0,0.0004848]
[1748899298054,7.4099067,104830.0,104820.0,0.0004848]
[1748899298286,7.43450582,104830.0,104820.0,0.0004848]
[1748899298487,7.4099067,104830.0,104820.0,0.0004848]
[1748899298900,7.41661555,104830.0,104820.0,0.0004848]
[1748899299102,7.4099067,104830.0,104820.0,0.0004848]
[1748899299546,0.20034326,104820.0,104810.0,0.19082145]
[1748899299746,0.02862166,104810.0,104800.0,0.27543399]
[1748899299904,1.02117018,104810.0,104800.0,0.29178223]
[1748899300312,1.20916062,104810.0,104800.0,0.22088793]
[1748899300509,1.20245169,104810.0,104800.0,0.23042982]
[1748899300939,1.20245169,104810.0,104800.0,0.23997162]
[1748899301151,1.20916095,104810.0,104800.0,0.25647162]
[1748899301351,1.22034305,104810.0,104800.0,0.25647162]
[1748899301587,1.23823441,104810.0,104800.0,0.26601333]
[1748899302064,1.22705231,104810.0,104800.0,0.29105485]
[1748899302235,1.22705231,104810.0,104800.0,0.28151333]
[1748899302592,6.27034305,104810.0,104800.0,0.23042982]
[1748899302705,6.2786937,104810.0,104800.0,0.23042982]
[1748899302908,6.2806937,104810.0,104800.0,0.23997162]
[1748899303137,6.26951155,104810.0,104800.0,0.23997162]
[1748899303348,6.26951157,104810.0,104800.0,0.23997162]
[1748899303551,6.28069377,104810.0,104800.0,0.24951333]
[1748899303756,6.26280225,104810.0,104800.0,0.24951333]
[1748899304362,6.26951163,104810.0,104800.0,0.24951333]
[1748899304602,6.26180225,104810.0,104800.0,0.24951333]
[1748899304912,6.26780225,104810.0,104800.0,0.24951333]
[1748899305097,6.26680225,104810.0,104800.0,0.24951333]
[1748899305412,6.27280225,104810.0,104800.0,0.24951333]
[1748899305818,6.29069395,104810.0,104800.0,0.24951333]
[1748899305973,6.27951163,104810.0,104800.0,0.24951333]
[1748899306172,6.29069395,104810.0,104800.0,0.24951333]
[1748899306349,6.27280225,104810.0,104800.0,0.24951333]
[1748899306555,6.27280225,104810.0,104800.0,0.23997162]
[1748899306963,6.2906931,104810.0,104800.0,0.23997162]
[1748899307171,6.29740204,104810.0,104800.0,0.23997162]
[1748899307377,6.27951129,104810.0,104800.0,0.23997162]
[1748899307582,6.27280225,104810.0,104800.0,0.23997162]
[1748899307782,6.29069299,104810.0,104800.0,0.23997162]
[1748899307982,6.27280225,104810.0,104800.0,0.23997162]
[1748899308206,6.27951072,104810.0,104800.0,0.23997162]
[1748899308416,6.27280225,104810.0,104800.0,0.23997162]
[1748899308620,6.29069147,104810.0,104800.0,0.23997162]
[1748899309021,6.27951046,104810.0,104800.0,0.23997162]
[1748899309276,6.27280225,104810.0,104800.0,0.23997162]
[1748899309461,6.29739829,104810.0,104800.0,0.23997162]
[1748899309671,6.27951022,104810.0,104800.0,0.24951333]
[1748899309859,6.2795102,104810.0,104800.0,0.24951333]
[1748899310094,6.29069008,104810.0,104800.0,0.24951333]
[1748899310296,6.27951021,104810.0,104800.0,0.24951333]
[1748899310464,6.27280225,104810.0,104800.0,0.24951333]
[1748899310664,6.56368225,104810.0,104800.0,0.24951333]
[1748899310892,6.58827862,104810.0,104800.0,0.24951333]
[1748899311097,6.58157052,104810.0,104800.0,0.24951333]
[1748899311300,6.09152138,104810.0,104800.0,0.30099619]
[1748899311504,6.29188393,104810.0,104800.0,0.30099619]
[1748899311708,6.67176393,104810.0,104800.0,0.30099619]
[1748899312936,6.67847225,104810.0,104800.0,0.30099619]
[1748899313138,6.68965275,104810.0,104800.0,0.30099619]
[1748899313359,6.48094245,104810.0,104800.0,0.30099619]
[1748899313589,6.47810949,104810.0,104800.0,0.30099619]
[1748899313791,6.47810953,104810.0,104800.0,0.30099619]
[1748899313993,6.48928942,104810.0,104800.0,0.30099619]
[1748899314408,6.47140138,104810.0,104800.0,0.30099619]
[1748899315022,6.48929005,104810.0,104800.0,0.30099619]
[1748899315564,6.47140138,104810.0,104800.0,0.30099619]
[1748899316031,6.66222286,104810.0,104800.0,0.26859619]
[1748899316244,6.47140138,104810.0,104800.0,0.28479619]
[1748899316828,6.4988303,104810.0,104800.0,0.28479619]
[1748899317008,6.48094163,104810.0,104800.0,0.28479619]
[1748899317206,6.49048252,104810.0,104800.0,0.28479619]
[1748899317411,6.49719076,104810.0,104800.0,0.28479619]
[1748899317739,6.5150794,104810.0,104800.0,0.28479619]
[1748899317875,6.49719075,104810.0,104800.0,0.28479619]
[1748899318080,6.49048252,104810.0,104800.0,0.28479619]
[1748899318286,6.50837116,104810.0,104800.0,0.28479619]
[1748899318486,6.49048252,104810.0,104800.0,0.28479619]
[1748899319013,6.50837116,104810.0,104800.0,0.28479619]
[1748899319219,6.49048252,104810.0,104800.0,0.28479619]
[1748899319435,6.49048252,104810.0,104800.0,0.26859619]
[1748899319599,6.49719076,104810.0,104800.0,0.26859619]
[1748899320016,6.49048252,104810.0,104800.0,0.26859619]
[1748899320214,6.11731078,104810.0,104800.0,0.26859619]
[1748899320403,6.49048252,104810.0,104800.0,0.28399619]
[1748899320597,6.50837124,104810.0,104800.0,0.28399619]
[1748899320998,6.53296823,104810.0,104800.0,0.28399619]
[1748899321264,6.50837124,104810.0,104800.0,0.28399619]
[1748899321451,6.51507951,104810.0,104800.0,0.28399619]
[1748899321678,6.50837124,104810.0,104800.0,0.28399619]
[1748899321838,6.52625997,104810.0,104800.0,0.28399619]
[1748899322237,6.53296821,104810.0,104800.0,0.28399619]
[1748899322454,6.5150795,104810.0,104800.0,0.28399619]
[1748899322659,6.52625995,104810.0,104800.0,0.28399619]
[1748899322858,6.50837124,104810.0,104800.0,0.28399619]
[1748899323445,6.50837124,104810.0,104800.0,0.26859619]
[1748899324022,6.51507945,104810.0,104800.0,0.26859619]
[1748899324228,6.50837124,104810.0,104800.0,0.26859619]
[1748899325465,6.5217877,104810.0,104800.0,0.26859619]
[1748899325665,6.52178765,104810.0,104800.0,0.26859619]
[1748899325869,6.51507947,104810.0,104800.0,0.26859619]
[1748899326268,6.52342617,104810.0,104800.0,0.26859619]
[1748899326701,6.51224645,104810.0,104800.0,0.26859619]
[1748899326906,6.53013421,104810.0,104800.0,0.26859619]
[1748899327188,6.50553858,104810.0,104800.0,0.26859619]
[1748899327462,6.53593858,104810.0,104800.0,0.26859619]
[1748899327695,6.53967632,104810.0,104800.0,0.26859619]
[1748899327896,6.51507947,104810.0,104800.0,0.26859619]
[1748899328123,6.5217877,104810.0,104800.0,0.26859619]
[1748899328339,6.50553858,104810.0,104800.0,0.26859619]
[1748899329486,6.52343027,104810.0,104800.0,0.26859619]
[1748899329696,6.53013965,104810.0,104800.0,0.26859619]
[1748899329906,6.52343027,104810.0,104800.0,0.26859619]
[1748899330107,6.50553858,104810.0,104800.0,0.26859619]
[1748899330309,6.52343027,104810.0,104800.0,0.26859619]
[1748899330558,6.50553858,104810.0,104800.0,0.26859619]
[1748899331186,6.52343027,104810.0,104800.0,0.26859619]
[1748899331328,6.50553858,104810.0,104800.0,0.26859619]
[1748899331535,6.51507947,104810.0,104800.0,0.26859619]
[1748899331743,6.50553858,104810.0,104800.0,0.0777565]
[1748899331947,6.53013965,104810.0,104800.0,0.0777565]
[1748899332161,6.51507947,104810.0,104800.0,0.0777565]
[1748899332388,6.53297116,104810.0,104800.0,0.0777565]
[1748899332584,6.52178885,104810.0,104800.0,0.0777565]
[1748899332817,6.51507947,104810.0,104800.0,0.0777565]
[1748899333014,6.52178885,104810.0,104800.0,0.0777565]
[1748899333214,6.49480852,104810.0,104800.0,0.03004824]
[1748899333444,6.47691683,104810.0,104800.0,0.03004824]
[1748899334367,6.49480852,104810.0,104800.0,0.03004824]
[1748899334568,6.48362621,104810.0,104800.0,0.03004824]
[1748899334771,6.49480852,104810.0,104800.0,0.03004824]
[1748899334985,6.47691683,104810.0,104800.0,0.03004824]
[1748899336099,6.49480852,104810.0,104800.0,0.03004824]
[1748899336295,6.47691683,104810.0,104800.0,0.03004824]
[1748899336499,6.49480852,104810.0,104800.0,0.03004824]
[1748899336703,6.47691683,104810.0,104800.0,0.03004824]
[1748899336901,6.48362621,104810.0,104800.0,0.03004824]
[1748899337591,6.54965561,104810.0,104800.0,0.03004824]
[1748899337769,0.08822202,104810.0,104800.0,0.06204824]
[1748899337973,0.05448831,104810.0,104800.0,0.15790254]
[1748899338145,0.568652,104810.0,104800.0,0.16028769]
[1748899338349,0.568652,104810.0,104800.0,0.15790254]
[1748899338350,0.55076257,104810.0,104800.0,0.15790254]
[1748899338551,0.55970708,104810.0,104800.0,0.15790254]
[1748899338754,0.5775961,104810.0,104800.0,0.15790254]
[1748899338958,0.55076257,104810.0,104800.0,0.15790254]
[1748899339119,0.55076257,104810.0,104800.0,0.16028774]
[1748899339320,0.05448831,104810.0,104800.0,0.16028774]
[1748899339843,0.07237663,104810.0,104800.0,0.15790254]
[1748899340007,0.04248831,104810.0,104800.0,0.16028767]
[1748899340367,0.05248831,104810.0,104800.0,0.16028767]
[1748899340766,0.06437625,104810.0,104800.0,0.16028767]
[1748899341064,0.04648831,104810.0,104800.0,0.16028767]
[1748899341269,0.06437638,104810.0,104800.0,0.15790254]
[1748899341485,0.04648831,104810.0,104800.0,0.16028767]
[1748899341911,0.04648831,104810.0,104800.0,0.50028767]
[1748899342121,0.05048831,104810.0,104800.0,0.49790254]
[1748899343605,0.05048831,104810.0,104800.0,1.08332938]
[1748899343819,0.05048831,104810.0,104800.0,0.58682254]
[1748899344039,0.04648831,104810.0,104800.0,0.58682254]
[1748899344247,0.04248831,104810.0,104800.0,0.58682254]
[1748899344468,0.04348831,104810.0,104800.0,1.09987023]
[1748899344680,0.04248831,104810.0,104800.0,1.09787023]
[1748899345156,0.04348831,104810.0,104800.0,1.10087023]
[1748899345380,0.04448831,104810.0,104800.0,1.10087023]
[1748899345837,0.04348831,104810.0,104800.0,1.18087023]
[1748899346098,0.04548831,104810.0,104800.0,1.18087023]
[1748899346268,0.04448831,104810.0,104800.0,1.17787023]
[1748899346608,0.04548831,104810.0,104800.0,1.18187023]
[1748899346819,0.04548831,104810.0,104800.0,1.37270992]
[1748899348295,0.04548831,104810.0,104800.0,1.39179288]
[1748899349363,0.04548831,104810.0,104800.0,1.79179288]
[1748899352904,0.04548831,104810.0,104800.0,1.29528604]
[1748899353110,0.04548831,104810.0,104800.0,1.79179288]
[1748899359090,0.04548831,104810.0,104800.0,1.39179288]
[1748899360194,0.04548831,104810.0,104800.0,1.68247288]
[1748899361292,0.04548831,104810.0,104800.0,2.178564]
[1748899361512,0.04548831,104810.0,104800.0,2.578564]
[1748899362205,0.04548831,104810.0,104800.0,2.990684]
[1748899375512,0.04548831,104810.0,104800.0,2.700004]
[1748899375676,0.04548831,104810.0,104800.0,2.990644]
[1748899381091,0.04548831,104810.0,104800.0,2.700004]
[1748899381309,0.04548831,104810.0,104800.0,2.990604]
[1748899389736,0.04548831,104810.0,104800.0,3.019248]
[1748899396519,0.04548831,104810.0,104800.0,3.00200435]
[1748899402808,0.04548831,104810.0,104800.0,2.00940639]
[1748899402931,0.04548831,104810.0,104800.0,3.00200435]
[1748899407202,0.04548831,104810.0,104800.0,3.00196435]
[1748899425426,0.04548831,104810.0,104800.0,2.99944435]
[1748899427732,0.04548831,104810.0,104800.0,3.49574333]
[1748899427942,0.04548831,104810.0,104800.0,2.99944435]
[1748899428356,0.04548831,104810.0,104800.0,3.79454333]
[1748899428607,0.04348831,104810.0,104800.0,3.79454333]
[1748899428802,0.04548831,104810.0,104800.0,3.29824435]
[1748899429218,0.02648831,104810.0,104800.0,3.3232749]
[1748899429636,0.02848831,104810.0,104800.0,3.82257388]
[1748899432334,0.02848831,104810.0,104800.0,3.82257388]
[1748899436393,0.01848831,104810.0,104800.0,3.82257388]
[1748899441437,0.01848831,104810.0,104800.0,3.52377388]
[1748899442930,0.01848831,104810.0,104800.0,3.52349388]
[1748899443504,0.00848831,104810.0,104800.0,3.52349388]
[1748899450474,0.00619643,104820.0,104810.0,1.56658241]
[1748899450684,0.00619643,104820.0,104810.0,1.66243671]
[1748899451088,0.00619643,104820.0,104810.0,2.09107371]
[1748899451730,0.00819643,104820.0,104810.0,2.10407371]
[1748899452142,0.00819643,104820.0,104810.0,2.40287371]
[1748899453611,0.00819643,104820.0,104810.0,2.49159371]
[1748899458506,0.00819643,104820.0,104810.0,2.90363371]
[1748899459791,0.00819643,104820.0,104810.0,2.20143575]
[1748899460040,0.03899643,104820.0,104810.0,2.69773473]
[1748899460464,0.03899643,104820.0,104810.0,2.39893473]
[1748899461105,0.03899643,104820.0,104810.0,2.01981473]
[1748899461332,0.03899643,104820.0,104810.0,1.98439388]
[1748899461534,0.03899643,104820.0,104810.0,1.99893473]
[1748899462174,0.03899643,104820.0,104810.0,1.61981473]
[1748899462384,0.03899643,104820.0,104810.0,1.99893473]
[1748899463460,0.03899643,104820.0,104810.0,1.70853473]
[1748899463669,0.03899643,104820.0,104810.0,1.99893473]
[1748899475168,0.00819643,104820.0,104810.0,2.49523371]
[1748899476216,0.03899643,104820.0,104810.0,2.49523371]
[1748899477383,0.00819643,104820.0,104810.0,2.52643371]
[1748899477970,0.00819643,104820.0,104810.0,2.92643371]
[1748899478518,0.00819643,104820.0,104810.0,2.91943371]
[1748899478519,0.00719643,104820.0,104810.0,2.91943371]
[1748899478722,0.00819643,104820.0,104810.0,2.93043371]
[1748899479458,0.00719643,104820.0,104810.0,2.92443371]
[1748899479938,0.00819643,104820.0,104810.0,2.93243371]
[1748899481802,0.00819643,104820.0,104810.0,3.23123371]
[1748899485493,0.01587969,104840.0,104830.0,0.57394259]
[1748899485702,0.01587969,104840.0,104830.0,1.25477587]
[1748899486737,0.01687969,104840.0,104830.0,1.25977587]
[1748899487139,0.01687969,104840.0,104830.0,1.55013587]
[1748899487758,0.01687969,104840.0,104830.0,1.63513587]
[1748899488996,0.01687969,104840.0,104830.0,1.64463816]
[1748899489832,0.01687969,104840.0,104830.0,1.35427816]
[1748899490052,0.01687969,104840.0,104830.0,1.64459816]
[1748899491626,0.01687969,104840.0,104830.0,1.64403816]
[1748899497838,0.01687969,104840.0,104830.0,1.35371816]
[1748899498081,0.01687969,104840.0,104830.0,1.64403816]
[1748899500303,0.0163,104840.0,104830.0,1.64403816]
[1748899500519,0.0315,104840.0,104830.0,0.74469604]
[1748899500729,0.0315,104840.0,104830.0,1.12369604]
[1748899500938,0.0315,104840.0,104830.0,0.74469604]
[1748899501145,0.0315,104840.0,104830.0,0.78369604]
[1748899501395,1.02409796,104840.0,104830.0,0.40469604]
[1748899501602,1.03356728,104840.0,104830.0,0.40469604]
[1748899501789,1.04250891,104840.0,104830.0,0.69513604]
[1748899502010,1.03356728,104840.0,104830.0,0.69513604]
[1748899502705,1.03356728,104840.0,104830.0,0.40469604]
[1748899502910,1.05264277,104840.0,104830.0,0.29986313]
[1748899503142,1.06218093,104840.0,104830.0,0.30940174]
[1748899503571,1.07171918,104840.0,104830.0,0.30940174]
[1748899503814,1.08066125,104840.0,104830.0,0.30940174]
[1748899504021,1.05264277,104840.0,104830.0,0.30940174]
[1748899504232,1.07171909,104840.0,104830.0,0.30940174]
[1748899504476,1.07171909,104840.0,104830.0,0.22940174]
[1748899504731,1.07071909,104840.0,104830.0,0.22440174]
[1748899504925,1.09631078,104840.0,104830.0,0.21940174]
[1748899505147,1.07171909,104840.0,104830.0,0.21940174]
[1748899505354,1.07371909,104840.0,104830.0,0.21940174]
[1748899505561,1.08042592,104840.0,104830.0,0.21940174]
[1748899505769,1.07371909,104840.0,104830.0,0.21940174]
[1748899505971,1.08266154,104840.0,104830.0,0.21940174]
[1748899506173,1.07371909,104840.0,104830.0,0.21940174]
[1748899506569,1.08042593,104840.0,104830.0,0.21940174]
[1748899506771,1.07371909,104840.0,104830.0,0.21940174]
[1748899507692,1.08265975,104840.0,104830.0,0.21940174]
[1748899507891,1.0804236,104840.0,104830.0,0.21940174]
[1748899508093,1.07371909,104840.0,104830.0,0.21940174]
[1748899508254,1.07311892,104840.0,104830.0,0.21940174]
[1748899508430,1.07982239,104840.0,104830.0,0.21940174]
[1748899508635,1.06418084,104840.0,104830.0,0.21940174]
[1748899508861,1.07251876,104840.0,104830.0,0.21940174]
[1748899509061,1.06358073,104840.0,104830.0,0.21940174]
[1748899509268,1.06418084,104840.0,104830.0,0.22425862]
[1748899509479,1.04510489,104840.0,104830.0,0.21940174]
[1748899509683,1.08815971,104840.0,104830.0,0.21940174]
[1748899509883,1.05464268,104840.0,104830.0,0.21940174]
[1748899510757,1.07251839,104840.0,104830.0,0.21940174]
[1748899510939,1.07191804,104840.0,104830.0,0.21940174]
[1748899511162,1.06298074,104840.0,104830.0,0.21940174]
[1748899511390,1.05404281,104840.0,104830.0,0.21940174]
[1748899511563,1.04510489,104840.0,104830.0,0.21940174]
[1748899511740,1.06298075,104840.0,104830.0,0.21940174]
[1748899511947,1.04510489,104840.0,104830.0,0.21940174]
[1748899512162,1.06074623,104840.0,104830.0,0.21940174]
[1748899512369,1.04510489,104840.0,104830.0,0.21940174]
[1748899513152,1.06074614,104840.0,104830.0,0.21940174]
[1748899513372,1.04510489,104840.0,104830.0,0.21940174]
[1748899513571,1.05180829,104840.0,104830.0,0.21940174]
[1748899513773,1.06908429,104840.0,104830.0,0.21940174]
[1748899513981,1.0786219,104840.0,104830.0,0.21940174]
[1748899514191,1.07862229,104840.0,104830.0,0.21940174]
[1748899514387,1.04227099,104840.0,104830.0,0.21940174]
[1748899514561,1.04227088,104840.0,104830.0,0.21940174]
[1748899514784,1.04450532,104840.0,104830.0,0.21940174]
[1748899514987,1.03556728,104840.0,104830.0,0.21940174]
[1748899515191,1.05344273,104840.0,104830.0,0.21940174]
[1748899515526,1.03556728,104840.0,104830.0,0.21940174]
[1748899516533,1.06238113,104840.0,104830.0,0.21940174]
[1748899516738,1.03556728,104840.0,104830.0,0.21940174]
[1748899516981,1.04450501,104840.0,104830.0,0.21940174]
[1748899517192,1.03556728,104840.0,104830.0,0.21940174]
[1748899517417,0.04296932,104840.0,104830.0,0.21940174]
[1748899517640,1.03556728,104840.0,104830.0,0.21940174]
[1748899517858,0.5392683,104840.0,104830.0,0.31525604]
[1748899518742,0.51459898,104840.0,104830.0,0.31525604]
[1748899518976,0.0183,104840.0,104830.0,0.31525604]
[1748899519402,0.0183,104840.0,104830.0,0.40393604]
[1748899519643,0.51459898,104840.0,104830.0,0.40393604]
[1748899520058,0.0183,104840.0,104830.0,0.40393604]
[1748899522868,0.51459898,104840.0,104830.0,0.40393604]
[1748899523097,0.51459898,104840.0,104830.0,0.51012174]
[1748899523098,0.0162,104840.0,104830.0,0.51012174]
[1748899523350,0.51249898,104840.0,104830.0,0.21940174]
[1748899523559,0.51249898,104840.0,104830.0,0.51012174]
[1748899524403,0.51249898,104840.0,104830.0,0.60597604]
[1748899526973,0.52769898,104840.0,104830.0,0.60597604]
[1748899529198,0.51249898,104840.0,104830.0,0.60597604]
[1748899530299,0.49629898,104840.0,104830.0,0.60597604]
[1748899530537,0.49629898,104840.0,104830.0,0.60569604]
[1748899530751,0.51199898,104840.0,104830.0,0.60569604]
[1748899530968,0.52819898,104840.0,104830.0,0.60569604]
[1748899531392,0.52819898,104840.0,104830.0,0.31525604]
[1748899531603,0.52819898,104840.0,104830.0,0.60565604]
[1748899532018,0.49629898,104840.0,104830.0,0.60565604]
[1748899533051,0.49629898,104840.0,104830.0,0.60561604]
[1748899534044,0.05982106,104850.0,104840.0,0.21938081]
[1748899534276,0.57459385,104850.0,104840.0,0.21938081]
[1748899534525,0.55612004,104850.0,104840.0,0.21938081]
[1748899534739,0.56565683,104850.0,104840.0,0.21938081]
[1748899534922,0.55612004,104850.0,104840.0,0.21938081]
[1748899535170,0.56565683,104850.0,104840.0,0.21938081]
[1748899535434,0.57465683,104850.0,104840.0,0.22038081]
[1748899535647,0.59159369,104850.0,104840.0,0.22138081]
[1748899535825,0.58935935,104850.0,104840.0,0.22138081]
[1748899536086,0.58935934,104850.0,104840.0,0.22138081]
[1748899536296,0.59159342,104850.0,104840.0,0.22138081]
[1748899536501,0.58265683,104850.0,104840.0,0.22138081]
[1748899536981,0.60946658,104850.0,104840.0,0.22138081]
[1748899537157,0.59159339,104850.0,104840.0,0.22138081]
[1748899537373,0.58265683,104850.0,104840.0,0.22138081]
[1748899537577,0.59889614,104850.0,104840.0,0.22138081]
[1748899537732,0.61900339,104850.0,104840.0,0.51174081]
[1748899537928,0.60113026,104850.0,104840.0,0.51174081]
[1748899538175,0.61006682,104850.0,104840.0,0.51174081]
[1748899538378,0.61900337,104850.0,104840.0,0.51174081]
[1748899538595,0.60113026,104850.0,104840.0,0.51174081]
[1748899538799,0.59219371,104850.0,104840.0,0.51174081]
[1748899538972,0.60113026,104850.0,104840.0,0.51174081]
[1748899539372,0.59219371,104850.0,104840.0,0.51174081]
[1748899539571,0.60113021,104850.0,104840.0,0.51174081]
[1748899539852,0.60113014,104850.0,104840.0,0.51174081]
[1748899540052,0.61676867,104850.0,104840.0,0.51174081]
[1748899540967,0.62630592,104850.0,104840.0,0.51174081]
[1748899541197,0.61676867,104850.0,104840.0,0.51174081]
[1748899542115,0.63464136,104850.0,104840.0,0.51174081]
[1748899542351,1.32289092,104850.0,104840.0,0.5117409]
[1748899542606,1.32005652,104850.0,104840.0,0.50220311]
[1748899542845,1.34016285,104850.0,104840.0,0.51174099]
[1748899543082,1.32229052,104850.0,104840.0,0.51174099]
[1748899543341,1.32289174,104850.0,104840.0,0.51174099]
[1748899543518,0.85116731,104850.0,104840.0,0.52127878]
[1748899543649,0.66935483,104850.0,104840.0,0.52127878]
[1748899543858,0.82659276,104850.0,104840.0,0.53081648]
[1748899544062,0.86010352,104850.0,104840.0,0.53081648]
[1748899544248,0.83552896,104850.0,104840.0,0.53081648]
[1748899544447,0.82659276,104850.0,104840.0,0.24045648]
[1748899544671,0.82659276,104850.0,104840.0,0.19276688]
[1748899544672,1.32779149,104850.0,104840.0,0.19276688]
[1748899544959,1.32779149,104850.0,104840.0,0.20230513]
[1748899544960,1.3121519,104850.0,104840.0,0.20230513]
[1748899545160,1.29428082,104850.0,104840.0,0.20230513]
[1748899545384,1.65060695,104850.0,104840.0,0.002]
[1748899545581,1.66847531,104850.0,104840.0,0.20230522]
[1748899545786,1.64777019,104850.0,104840.0,0.20230522]
[1748899545989,1.65893775,104850.0,104840.0,0.19276688]
[1748899546170,1.64106961,104850.0,104840.0,0.20230513]
[1748899546750,1.63153218,104850.0,104840.0,0.002]
[1748899546957,1.63153218,104850.0,104840.0,0.20230522]
[1748899547158,1.63823322,104850.0,104840.0,0.20230522]
[1748899547358,1.64940162,104850.0,104840.0,0.20230522]
[1748899547564,1.63153218,104850.0,104840.0,0.20230522]
[1748899547792,1.64943342,104850.0,104840.0,0.20230522]
[1748899547970,1.6494349,104850.0,104840.0,0.20230522]
[1748899548206,1.63156396,104850.0,104840.0,0.20230522]
[1748899548410,1.70059072,104850.0,104840.0,0.20230522]
[1748899548604,1.69388906,104850.0,104840.0,0.20230522]
[1748899548772,1.63826572,104850.0,104840.0,0.20230522]
[1748899548972,1.65613708,104850.0,104840.0,0.21184347]
[1748899549198,1.64943532,104850.0,104840.0,0.21184347]
[1748899549415,1.64943641,104850.0,104840.0,0.21184347]
[1748899549660,1.64943668,104850.0,104840.0,0.21184347]
[1748899549877,1.63156396,104850.0,104840.0,0.21184347]
[1748899550447,1.63826622,104850.0,104840.0,0.21184347]
[1748899550669,1.65613892,104850.0,104840.0,0.21184347]
[1748899550872,1.63156396,104850.0,104840.0,0.20230522]
[1748899551396,1.65613893,104850.0,104840.0,0.20230522]
[1748899551537,1.63156396,104850.0,104840.0,0.20230522]
[1748899551739,1.56556605,104850.0,104840.0,0.002]
[1748899551940,1.63156927,104850.0,104840.0,0.20230522]
[1748899552369,1.63827204,104850.0,104840.0,0.20230522]
[1748899552567,1.63156927,104850.0,104840.0,0.20230522]
[1748899552740,1.6561476,104850.0,104840.0,0.20230522]
[1748899553105,1.63156927,104850.0,104840.0,0.21184347]
[1748899553878,1.67402318,104850.0,104840.0,0.22138163]
[1748899554105,1.66732003,104850.0,104840.0,0.22138163]
[1748899554303,1.6494446,104850.0,104840.0,0.22138163]
[1748899554506,1.66732002,104850.0,104840.0,0.22138163]
[1748899554680,1.6494446,104850.0,104840.0,0.21184347]
[1748899555114,1.6494446,104850.0,104840.0,0.22138163]
[1748899555565,1.6740233,104850.0,104840.0,0.22138163]
[1748899555906,1.6740233,104850.0,104840.0,0.2309197]
[1748899556105,1.67402324,104850.0,104840.0,0.2309197]
[1748899556395,1.67402333,104850.0,104840.0,0.2309197]
[1748899556566,1.60802021,104850.0,104840.0,0.2309197]
[1748899556766,1.29308138,104850.0,104840.0,0.2309197]
[1748899557121,1.58344138,104850.0,104840.0,0.2309197]
[1748899557558,1.59014469,104850.0,104840.0,0.2309197]
[1748899557761,1.58344138,104850.0,104840.0,0.2309197]
[1748899557963,1.60131687,104850.0,104840.0,0.2309197]
[1748899558138,1.58344138,104850.0,104840.0,0.2309197]
[1748899558395,1.60131685,104850.0,104840.0,0.2309197]
[1748899558611,1.58344138,104850.0,104840.0,0.2309197]
[1748899558826,1.59968193,104850.0,104840.0,0.2309197]
[1748899559036,1.61085412,104850.0,104840.0,0.2309197]
[1748899559260,1.59297863,104850.0,104840.0,0.23861768]
[1748899559493,1.6108541,104850.0,104840.0,0.23861768]
[1748899559758,1.59968194,104850.0,104840.0,0.23861722]
[1748899560019,1.59297863,104850.0,104840.0,0.23861722]
[1748899560515,1.59968194,104850.0,104840.0,0.23861722]
[1748899560741,1.59297863,104850.0,104840.0,0.23861722]
[1748899561450,1.59968198,104850.0,104840.0,0.23861722]
[1748899561674,1.61755758,104850.0,104840.0,0.23861722]
[1748899561917,1.61085422,104850.0,104840.0,0.23861676]
[1748899562165,1.61085423,104850.0,104840.0,0.23861676]
[1748899562396,1.59297863,104850.0,104840.0,0.23861676]
[1748899562607,1.61755755,104850.0,104840.0,0.23861676]
[1748899562863,1.1392825,104850.0,104840.0,0.23861676]
[1748899563067,1.62992852,104850.0,104840.0,0.23861676]
[1748899563245,1.62545962,104850.0,104840.0,0.22907897]
[1748899563385,1.63663185,104850.0,104840.0,0.22907897]
[1748899563592,1.61875628,104850.0,104840.0,0.22907897]
[1748899564015,1.64333495,104850.0,104840.0,0.22907897]
[1748899564219,1.61875628,104850.0,104840.0,0.22907897]
[1748899564627,1.62545973,104850.0,104840.0,0.22907897]
[1748899564864,1.61875628,104850.0,104840.0,0.22907897]
[1748899565043,1.63663227,104850.0,104840.0,0.23861667]
[1748899565254,1.61875628,104850.0,104840.0,0.23861667]
[1748899565986,1.63663228,104850.0,104840.0,0.22907897]
[1748899566218,1.61875628,104850.0,104840.0,0.22907897]
[1748899566420,1.62545978,104850.0,104840.0,0.22907897]
[1748899566637,1.61875628,104850.0,104840.0,0.22907897]
[1748899567395,1.63663228,104850.0,104840.0,0.22907897]
[1748899567794,1.61875628,104850.0,104840.0,0.22907897]
[1748899569033,1.63329713,104850.0,104840.0,0.22907897]
[1748899569238,1.65787655,104850.0,104840.0,0.22907897]
[1748899569414,1.63329713,104850.0,104840.0,0.22907897]
[1748899569572,1.63998939,104850.0,104840.0,0.22907897]
[1748899569779,1.63999089,104850.0,104840.0,0.23861676]
[1748899569984,1.63329713,104850.0,104840.0,0.23861676]
[1748899571102,1.6495291,104850.0,104840.0,0.2386163]
[1748899571291,1.66068668,104850.0,104840.0,0.2386163]
[1748899571494,1.64952913,104850.0,104840.0,0.2386163]
[1748899571720,1.66738129,104850.0,104840.0,0.2386163]
[1748899571881,1.64952912,104850.0,104840.0,0.2386163]
[1748899572239,1.64283456,104850.0,104840.0,0.2386163]
[1748899572841,1.61752912,104850.0,104840.0,0.2386163]
[1748899573306,1.6175288,104850.0,104840.0,0.2386163]
[1748899573523,1.61083456,104850.0,104840.0,0.2386163]
[1748899573834,1.62868583,104850.0,104840.0,0.2386163]
[1748899574085,1.61083456,104850.0,104840.0,0.2386163]
[1748899574480,1.63541968,104850.0,104840.0,0.2386163]
[1748899574698,1.61083456,104850.0,104840.0,0.2386163]
[1748899575239,1.62871426,104850.0,104840.0,0.2386163]
[1748899575451,1.61083456,104850.0,104840.0,0.2386163]
[1748899575865,1.32047456,104850.0,104840.0,0.2386163]